Cogmind - Beta 14 @@@ ROGUE MODE // 2025.03.29 @ 10:38:52 Player: Silfurdreki Result: Destroyed self with Grenade Launcher Performance ------------- Evolutions (1) 500 Regions Visited (2) 400 Robots Destroyed (20) 100 Value Destroyed (436) 436 Prototype IDs (1) 20 Alien Tech Used (0) 0 Bonus (0) 0 TOTAL SCORE: 1456 Bonus ------- None Cogmind --------- Core Integrity 0/400 Matter 261/300 Energy 100/100 System Corruption 1% Temperature Cool (9) Movement Core (250) Ox4 Location -9/Materials Parts ------- > --- POWER (1) -------- (None) > --- PROPULSION (3) --- (None) > --- UTILITY (3) ------ Medium Storage Unit Structural Scanner > --- WEAPON (2) ------- Grenade Launcher > --- INVENTORY (10) --- Heavy Ion Engine Heavy Ion Engine Small Storage Unit Visual Processing Unit Terrain Scanner Seismic Detector Targeting Computer Peak State ------------ > --- POWER ------------ Light Nuclear Core > --- PROPULSION ------- Wheel Wheel Compact Wheel > --- UTILITY ---------- Medium Storage Unit Structural Scanner Hardened Light Armor Plating > --- WEAPON ----------- Assault Rifle Shotgun > --- INVENTORY -------- Heavy Ion Engine Heavy Ion Engine Small Storage Unit Visual Processing Unit Terrain Scanner Seismic Detector Targeting Computer Grenade Launcher [Rating: 14] Favorites ----------- Power Light Ion Engine Engine Light Ion Engine Power Core Light Nuclear Core Propulsion Wheel Wheel Wheel Utility Medium Storage Unit Device Structural Scanner Storage Medium Storage Unit Protection Hardened Light Armor Plating Weapon Assault Rifle Energy Gun Medium Laser Ballistic Gun Assault Rifle Ballistic Cannon Light Cannon Launcher Grenade Launcher Build | -11 -10 -9 ------- Run | Yrd Mat Mat Slots Evolved 2 | . . 2 Power . | . . . Propulsion 1 | . . 1 Utility 1 | . . 1 Weapon . | . . . Parts Attached 24 | 7 11 6 Power 4 | 1 2 1 Engine 3 | 1 2 . Core 1 | . . 1 Reactor . | . . . Propulsion 5 | 2 2 1 Treads . | . . . Leg . | . . . Wheel 5 | 2 2 1 Hover . | . . . Flight . | . . . Utility 7 | 1 4 2 Device 4 | . 2 2 Storage 2 | 1 1 . Processor . | . . . Hackware . | . . . Protection 1 | . 1 . Artifact . | . . . Weapon 8 | 3 3 2 Energy Gun 1 | 1 . . Energy Cannon . | . . . Ballistic Gun 5 | 2 2 1 Ballistic Cannon 1 | . 1 . Launcher 1 | . . 1 Special Weapon . | . . . Impact Weapon . | . . . Slashing Weapon . | . . . Piercing Weapon . | . . . Special Melee Weapon . | . . . Unidentified Prototypes 1 | . 1 . Parts Lost 9 | . 1 8 Power 2 | . . 2 Propulsion 3 | . . 3 Utility 1 | . . 1 Weapon 3 | . 1 2 Highest Loss Streak 7 | . 1 7 To Critical Strikes . | . . . Average Slot Usage (%) 93 | . 98 84 Engine 10 | . 14 3 Core 1 | . . 3 Wheel 27 | . 28 27 Device 5 | . 3 10 Storage 12 | . 14 11 Protection 9 | . 9 9 Ballistic Gun 20 | . 21 17 Ballistic Cannon 4 | . 5 1 Peak Build Rating 14 | 6 11 14 Average Rating 9 | 5 8 11 On Entrance 5 | . 6 9 Naked Turns . | . . . Heaviest Build 27 | 11 27 26 Greatest Support 36 | 26 26 36 Greatest Overweight (x) 6 | . 1 6 Average Overweight (x) . | . . . Largest Inventory Capacity 10 | 8 10 10 Average Capacity 9 | 7 9 10 Most Carried 10 | 2 10 8 Average Carried 7 | 1 8 7 Final Capacity 10 | 8 10 10 Final Carried 9 | 2 9 7 Class Distribution -------------------- 100% | Mutant Dominant Class ---------------- Mutant | -10/Materials Mutant | -9/Materials Resources | -11 -10 -9 ----------- Run | Yrd Mat Mat Matter Collected 795 | 219 390 186 Remotely . | . . . Salvage Created 567 | . 338 229 Parts 40 | . 20 20 Haulers Intercepted 2 | . 2 . Recyclers Shooed . | . . . Parts Field Recycled . | . . . Retrieved Matter . | . . . Parts Self-Destructed . | . . . Prevented . | . . . Kills | -11 -10 -9 ------- Run | Yrd Mat Mat Combat Hostiles Destroyed 15 | . 8 7 Guns 12 | . 5 7 Cannons 3 | . 3 . Classes Destroyed 6 | . 5 1 Worker 2 | . 2 . Hauler 2 | . 2 . Watcher 1 | . 1 . Swarmer 6 | . 3 3 Grunt 7 | . 5 2 Sentry 2 | . . 2 Best Kill Streak 4 | . 4 3 Combat Bots Only 3 | . 3 3 Max Kills in Single Turn 2 | . 2 2 Gunslinging . | . . . Exploded . | . . . Melee . | . . . Uniques/NPCs Destroyed . | . . . Combat | -11 -10 -9 -------- Run | Yrd Mat Mat Hostile Shots Fired 189 | . 60 129 Missed 57 | . 15 42 Damage Taken 1635 | . 561 1074 Core 527 | . 118 409 Absorbed by Shields . | . . . Core Remaining (%) 76 | 100 52 . Volleys Fired 68 | . 39 29 Largest 2 | . 2 2 Hottest 55 | . 55 55 Shots Fired 126 | . 77 49 Gun 97 | . 52 45 Cannon 27 | . 25 2 Launcher 2 | . . 2 Special . | . . . Kinetic 124 | . 77 47 Thermal . | . . . Explosive 2 | . . 2 Electromagnetic . | . . . Robot Hit Streak 9 | . 5 9 Robot Miss Streak 4 | . 3 4 Penetration Max . | . . . Secondary Targets . | . . . Shots Hit Robots 85 | . 51 34 Core Hits 33 | . 18 15 Critical Kills . | . . . Critical Parts Destroyed 1 | . . 1 Critical Strikes 2 | . 1 1 Destroy 1 | . . 1 Blast 1 | . 1 . Melee Attacks . | . . . Impact . | . . . Slashing . | . . . Piercing . | . . . Sneak Attacks . | . . . Combat Hostiles . | . . . Follow-up Attacks . | . . . Damage Inflicted 1302 | . 711 591 Guns 862 | . 356 506 Cannons 355 | . 355 . Explosions 85 | . . 85 Melee . | . . . Ramming . | . . . Kinetic 1217 | . 711 506 Thermal . | . . . Explosive 85 | . . 85 Electromagnetic . | . . . Impact . | . . . Slashing . | . . . Piercing . | . . . Highest Corruption 1 | . . 1 Average Corruption 1 | . . 1 Corruption Purged . | . . . Corruption Blocked . | . . . Effects 1 | . . 1 Matter Fused 1 | . . 1 Overload Shots . | . . . Overflow Damage 6 | . 6 . Projectiles 6 | . 6 . Explosions . | . . . Melee . | . . . Knockbacks 4 | . 4 . Impact . | . . . Kinetic 4 | . 4 . Secondary . | . . . Self-Inflicted Damage 71 | . . 71 Shots 2 | . . 2 Rammed . | . . . Targets Rammed . | . . . Kicked . | . . . Crushed . | . . . Highest Temperature 265 | . 265 30 Average Temperature 84 | . 98 9 Received Heat Transfer 633 | . 252 381 Siege Activations . | . . . Robots Corrupted . | . . . Combat Hostiles . | . . . Parts Fried . | . . . Impact Corruptions . | . . . Robots Melted . | . . . Combat Hostiles . | . . . Parts Melted . | . . . Heat Transferred . | . . . Parts Sabotaged . | . . . Parts Stolen . | . . . Parts Stripped . | . . . Power Chain Reactions . | . . . Alert | -11 -10 -9 ------- Run | Yrd Mat Mat Peak Influence 229 | . 185 229 Initial 78 | . . 78 Average 76 | . 55 137 Maximum Alert Level 1 | . . 1 Low Security (%) 98 | 100 100 96 Level 1 1 | . . 3 Level 2 . | . . . Level 3 . | . . . Level 4 . | . . . Level 5 . | . . . High Security . | . . . Max Security . | . . . Squads Dispatched 3 | . 3 . Investigation 1 | . 1 . Extermination . | . . . Reinforcement 2 | . 2 . Assault . | . . . Garrison . | . . . Intercept . | . . . Searches Triggered . | . . . Construction Impeded . | . . . Haulers Reinforced . | . . . Active Scanning Responses . | . . . Cargo Convoy Interrupts . | . . . Stealth | -11 -10 -9 --------- Run | Yrd Mat Mat Distress Signals 3 | . 2 1 Communications Jammed . | . . . Distress Signals . | . . . Times Spotted 28 | . 14 14 Peak Tracking Total 6 | . 4 6 Tactical Retreats 6 | . 5 1 Traps | -11 -10 -9 ------- Run | Yrd Mat Mat Traps Triggered 2 | . 1 1 Indirectly . | . . . Trap Hack Attempts . | . . . Triggered . | . . . Disarmed . | . . . Reprogrammed . | . . . Reused . | . . . Traps Extracted . | . . . Installed . | . . . Triggered . | . . . Machines | -11 -10 -9 ---------- Run | Yrd Mat Mat Machines Disabled . | . . . Max in Single Turn . | . . . Machines Repaired . | . . . Machines Dismantled . | . . . Machines Sabotaged . | . . . Overloaded Fab Kills . | . . . Hacking | -11 -10 -9 --------- Run | Yrd Mat Mat Machines Accessed 9 | . 6 3 Terminals 7 | . 5 2 Fabricators . | . . . Repair Stations . | . . . Recycling Units 1 | . 1 . Scanalyzers 1 | . . 1 Garrison Access . | . . . Total Hacks 25 | . 15 10 Successful 15 | . 8 7 Failed 10 | . 7 3 Catastrophic 2 | . 2 . Database Lockouts . | . . . Manual 16 | . 10 6 Terminals 19 | . 11 8 Fabricators . | . . . Repair Stations . | . . . Recycling Units 4 | . 4 . Scanalyzers 2 | . . 2 Garrison Access . | . . . Terminal Hacks 6 | . 3 3 Record 1 | . 1 . Robot Analysis 1 | . 1 . Scanalyzer Index 1 | . 1 . Alert Level 1 | . . 1 Unreport Threat 1 | . . 1 Dispatch Records 1 | . . 1 Fabricator Hacks . | . . . Repair Station Hacks . | . . . Recycling Unit Hacks 2 | . 2 . Report Inventory 1 | . 1 . Retrieve Matter 1 | . 1 . Scanalyzer 2 | . . 2 Insert Component 1 | . . 1 Analyze 1 | . . 1 Garrison Access Hacks . | . . . Unauthorized Hacks 5 | . 3 2 Terminals 3 | . 1 2 Botnet 3 | . 1 2 Fabricators . | . . . Repair Stations . | . . . Recycling Units 2 | . 2 . Reject 1 | . 1 . Mask 1 | . 1 . Scanalyzers . | . . . Garrison Access . | . . . Data Cores Recovered . | . . . Used . | . . . Hacking Detections 8 | . 5 3 Full Trace Events 2 | . 2 . Feedback Events . | . . . Feedback Blocked . | . . . Robot Schematics Acquired . | . . . Robots Built . | . . . Authchips . | . . . Time . | . . . Total Robot Build Rating . | . . . Part Schematics Acquired 1 | . . 1 Parts Built . | . . . Authchips . | . . . Time . | . . . Total Part Build Rating . | . . . Parts Repaired . | . . . Time . | . . . Parts Recycled . | . . . Recycled Matter . | . . . Retrieved Matter . | . . . Retrieved Components . | . . . Parts Scanalyzed 1 | . . 1 Part Schematics Acquired 1 | . . 1 Parts Damaged . | . . . Bothacking | -11 -10 -9 ------------ Run | Yrd Mat Mat Used RIF Installer . | . . . Robots Hacked . | . . . Non-combat . | . . . Combat . | . . . Robot Hacks Applied . | . . . Relay Couplers Released . | . . . Fabnet Peak Effective % . | . . . Robots Rewired . | . . . Allies Hacked . | . . . Hacks Repelled . | . . . Allies | -11 -10 -9 -------- Run | Yrd Mat Mat Total Allies . | . . . Largest Group . | . . . Highest-Rated Group . | . . . Highest-Rated Ally . | . . . Total Orders . | . . . Ally Attacks . | . . . Total Damage . | . . . Kills . | . . . Allies Corrupted . | . . . Allies Melted . | . . . Intel | -11 -10 -9 ------- Run | Yrd Mat Mat Robot Analysis Total 1 | . 1 . Derelict Logs Recovered . | . . . Drone Launches . | . . . Drone Recoveries . | . . . Exploration | -11 -10 -9 ------------- Run | Yrd Mat Mat Turns Passed 1149 | 86 712 351 Spaces Moved 826 | 43 558 225 Core 10 | 4 . 6 Treads . | . . . Legs . | . . . Wheels 816 | 39 558 219 Hover . | . . . Flight . | . . . Fastest Speed 50 | 50 90 86 Average Speed 92 | 90 90 95 Slowest Speed 350 | 100 105 350 Overloaded Moves . | . . . Propulsion Burnouts . | . . . Robots Hopped . | . . . Cave-ins Triggered . | . . . Exploration Rate (%) 37 | 4 81 26 Regions Visited 2 Branch Regions . Pre-discovered Areas . | . . . Known Exits Taken . | . . . Unknown Exits Taken 2 | 1 1 . Scrap Searched . | . . . Spaces Dug . | . . . Terrain Destroyed 8 | . . 8 Melee . | . . . Projectile . | . . . AOE 8 | . . 8 Terrain Rammed . | . . . Walls Destroyed . | . . . Machines Disabled . | . . . Actions | -11 -10 -9 --------- Run | Yrd Mat Mat Total 1086 | 86 687 313 Wait 148 | 35 62 51 Move 824 | 42 557 225 Hop . | . . . Pick Up 12 | 2 9 1 Fast Attach 14 | 6 6 2 Attach 4 | . 1 3 Detach 2 | . 2 . Swap 6 | 1 4 1 Drop 8 | . 7 1 Fire 68 | . 39 29 Melee . | . . . Ram . | . . . Kick . | . . . Crush . | . . . Escape Stasis . | . . . Rewire . | . . . Trap . | . . . Miscellaneous . | . . . Route ------- -11/Scrapyard -10/Materials (discovered 4 exits: *Mat x2 / [*Min x2]) -9/Materials History --------- Turn | Location | Event 15 | -11/Scrapyard | Discovered new exit (range 16) 87 | -11/Scrapyard | Entered Materials 316 | -10/Materials | Build established: Mutant 370 | -10/Materials | Discovered new exit (range 8) 446 | -10/Materials | Discovered new exit (range 10) 543 | -10/Materials | Discovered new exit (range 13) 742 | -10/Materials | Discovered new exit (range 12) 799 | -10/Materials | Entered another Materials area 799 | -9/Materials | Evolved 2 slots: Propulsion x1, Utility x1 1125 | -9/Materials | Core integrity fell below 50% 1147 | -9/Materials | Core integrity fell below 20% 1150 | -9/Materials | Destroyed self with Grenade Launcher Last Messages --------------- 01076_ U-05 Engineer destroyed. 01081_ Wheel destroyed. 01089_ K-01 Serf collects debris. 01095_ Assault Rifle destroyed. 01097_ Hrd. Light Armor Plating destroyed. 01097_ Y-45 Defender destroyed. 01119_ R-06 Scavenger collects Hvy. Assault Rifle. 01122_ R-06 Scavenger collects Lgt. Armor Plating. 01127_ Com. Wheel destroyed. 01128_ Shotgun destroyed. 01130_ Critical hit (Burn: +37). 01130_ R-06 Scavenger collects Aluminum Leg. 01139_ G-34 Mercenary destroyed. 01142_ Lgt. Nuclear Core destroyed. 01145_ U-05 Engineer lays Concrete. 01147_ R-06 Scavenger collects Sml. Laser. 01148_ U-05 Engineer builds a Wall. 01149_ Processing Tank disabled. Map ----- +----------------------------------------------------+ | ?????????????????????????????????????????????????? | | ?????????????????????????????????????????????????? | | ?????????????????????????????????????????????????? | | ?????????????????????????????????????????????????? | | ?????????????????????????????????????????????????? | | ?????????????????????????????????????????????????? | | ?????????????????????????????????????????????????? | | ??????????????????????????????????????????????? | | ?????????????????????????? ????????????? | | ??????????????????????????####+####??????????## | | ??????????????????????????## ##??????????## | | ??????????????????????????## ?????????? | | ????????????????????######## ??????????? | | ????????????????????######## ?????????? | | ???????????????????? ^ ##??????????## | | ??????????????????????## ##??????????## | | ???????????????????##### ![ ! #####"" " ""## | | ???????????????????##### !! ############## | | ??????????????????? ### """ """ ## | | ??????????????????????## ### """ """ # | | ??????????????????????## ![ ### """ """ # | | ??????????????????###### r!! ### / T | | ??????? ############### ] ###! %! # | | ???????############# #u /% # | | ??????? # + Y % ####* ## | | ??????? #"" ####### @########## ## | | ??????? #"T ####### %r ################# | | ??????? #"" ##???## "g "" ###?############# | | ??????? # ##???## T """ ##???????????### | | ??????? # ##???## " """ ###????######### | | ???????## ##???## """ ###????######### | | ??????? ### ####???## """ ##?????## # | | ??????? ########???## ##?????## # | | ?????????####??????## [ ##?????## # | | ???????????????????#############?????## ] + | | ???????????????????#############?????## # | | ?????????????????????????????????###### !# | | ?????????????????????????????????############## | | ?????????????????????????????????## % # | | ?????????????????????????????????## """ + | | ?????????????????????????????????## """"" # | | ?????????????????????????????????## "" # | | ?????????????????????????????????## # | | ?????????????????????????????????## # | | ?????????????????????????????????## # | | ???????????????????????????????################ | | ???????????????????????????????## ############# | | ???????????????????????????????## # | | ???????????????????????????????## """ """ # | | ???????????????????????????????## """ R" # | +----------------------------------------------------+ Best States ------------- Heat Dissipation 35 Energy Generation 14 Energy Capacity 280 Matter Stores 300 Matter Capacity 300 Sight Range 16 Terrain Scan Density 10 Armor Coverage 150 Evasion (%) 42 Item Schematics ----------------- Terrain Scanner | -9/Materials | Scanalyzed Robot Schematics ------------------ None Fabricated ------------ Nothing Alien Tech Used ----------------- None Achievements -------------- None Challenges ------------ None Game ------ Seed FlyingTransportStick Manual? 0 Play Time 00:17:24 Cumulative 29.3 hours Start 2025.03.29 @ 10:22:20 End 2025.03.29 @ 10:38:52 Sessions 1 Manual Loads 0 Difficulty Rogue Special Mode None Game No. 47 Rogue 47 Adventurer 0 Explorer 0 Win Type - Total 0 Types 0/0/0/0/0/0/0/0/0 Lore% 26 Gallery% 31 Achievement% 30 Wizard Run 0 Options --------- Layout 1 ASCII 0 Keyboard 0 Movement Numpad Keybinds 0 Fullscreen 1 Font 32/SmallcapsGlow Map View 50x35 Zoom Use 0% Tactical HUD 1 Map Filters NONE Filters NONE Steam 1 RUN: 13f608d4-3e65-4388-aabc-0055aa6f7c78